bitfinex-derivatives/quotes_BNBF0:USTF0_20250617
["timestamp","ask_amount","ask_price","bid_price","bid_amount"]
[1750162072298,1.14257827,654.38,653.71,1.421]
[1750162073202,1.14257827,654.37,653.71,1.421]
[1750162073602,1.14257827,654.35,653.71,2.56042749]
[1750162073804,1.14257827,654.36,653.71,2.56042749]
[1750162074304,1.14257827,654.34,653.72,2.72442749]
[1750162074501,1.14257827,654.34,653.73,1.13942749]
[1750162075102,1.14257827,654.35,653.72,1.585]
[1750162075308,1.14257827,654.47,653.82,1.13942749]
[1750162075507,1.14257827,654.46,653.78,1.13942749]
[1750162075807,1.14257827,654.44,653.78,1.13942749]
[1750162076007,1.14257827,654.44,653.77,1.13942749]
[1750162076302,1.14257827,654.42,653.76,1.13942749]
[1750162076801,1.14257827,654.41,653.76,1.13942749]
[1750162077007,1.14257827,654.38,653.73,1.13942749]
[1750162077208,1.14257827,654.38,653.74,1.13942749]
[1750162077910,1.14257827,654.37,653.74,1.13942749]
[1750162079104,1.14257827,654.37,653.72,1.585]
[1750162079105,1.14257827,654.37,653.75,1.13942749]
[1750162079310,1.14257827,654.34,653.79,1.13942749]
[1750162080307,1.14257827,654.34,653.78,1.13942749]
[1750162080505,1.14257827,654.33,653.79,1.13942749]
[1750162080708,1.14257827,654.3,653.85,1.13942749]
[1750162081506,1.14257827,654.29,653.85,1.13942749]
[1750162082611,1.14257827,654.29,653.83,1.13942749]
[1750162083707,1.14257827,654.3,653.82,1.13942749]
[1750162084411,1.14257827,654.29,653.83,1.13942749]
[1750162084707,1.14257827,654.33,653.8,1.285]
[1750162084910,1.14257827,654.28,653.8,1.285]
[1750162085210,1.14257827,654.29,653.8,1.285]
[1750162085713,1.14257827,654.28,653.8,1.285]
[1750162086314,1.14257827,654.29,653.8,1.285]
[1750162086510,1.14257827,654.28,653.8,1.285]
[1750162087611,1.14257827,654.23,653.8,1.285]
[1750162088610,1.14257827,654.22,653.8,1.285]
[1750162090515,1.14257827,654.2,653.8,1.285]
[1750162091216,1.14257827,654.16,653.8,1.285]
[1750162091415,1.14257827,654.17,653.8,1.285]
[1750162092221,1.14257827,654.16,653.8,1.285]
[1750162092421,1.14257827,654.17,653.8,1.285]
[1750162093321,1.14257827,654.18,653.8,1.285]
[1750162093921,1.14257827,654.17,653.8,1.285]
[1750162094224,1.14257827,654.18,653.8,1.285]
[1750162095522,1.14257827,654.19,653.8,1.285]
[1750162096023,1.14257827,654.18,653.8,1.285]
[1750162096216,1.14257827,654.19,653.8,1.285]
[1750162097223,1.14257827,654.17,653.8,1.285]
[1750162097922,1.14257827,654.16,653.8,1.285]
[1750162098522,1.14257827,654.17,653.8,1.285]
[1750162099418,1.14257827,654.18,653.8,1.285]
[1750162099622,1.14257827,654.17,653.8,1.285]
[1750162099820,1.14257827,654.15,653.8,1.285]
[1750162100024,1.14257827,654.16,653.8,1.285]
[1750162100819,1.14257827,654.15,653.8,1.285]
[1750162101321,1.14257827,654.16,653.8,1.285]
[1750162103020,1.14257827,654.17,653.8,1.285]
[1750162104524,1.14257827,654.18,653.8,1.285]
[1750162104721,1.14257827,654.17,653.8,1.285]
[1750162105828,1.14257827,654.17,653.72,1.585]
[1750162106129,1.14257827,654.16,653.72,1.585]
[1750162106329,1.14257827,654.17,653.72,1.585]
[1750162106529,1.14257827,654.13,653.72,1.585]
[1750162107727,1.14257827,654.11,653.72,1.585]
[1750162107925,1.14257827,654.12,653.72,1.585]
[1750162108327,1.14257827,654.11,653.72,1.585]
[1750162108530,1.14257827,654.12,653.72,1.585]
[1750162109332,1.14257827,654.13,653.72,1.585]
[1750162109833,1.14257827,654.12,653.72,1.585]
[1750162110332,1.14257827,654.13,653.72,1.585]
[1750162112334,1.14257827,654.14,653.72,1.585]
[1750162115434,1.14257827,654.08,653.72,1.585]
[1750162116335,1.14257827,654.07,653.72,1.585]
[1750162116737,1.14257827,654.06,653.72,1.585]
[1750162117137,1.14257827,654.06,653.73,1.401]
[1750162117335,1.14257827,654.07,653.73,1.401]
[1750162117535,1.14257827,654.06,653.73,1.401]
[1750162118339,1.14257827,654.07,653.73,1.401]
[1750162118942,1.14257827,654.09,653.73,1.401]
[1750162119341,1.14257827,654.1,653.73,1.401]
[1750162121341,1.14257827,654.11,653.73,1.401]
[1750162121745,1.14257827,654.1,653.73,1.401]
[1750162122645,1.14257827,654.11,653.73,1.401]
[1750162122945,1.52387125,654.28,653.73,1.401]
[1750162122946,1.14257827,654.1,653.73,1.401]
[1750162123244,1.14257827,654.09,653.73,1.401]
[1750162123444,1.14257827,654.1,653.73,1.401]
[1750162128751,1.14257827,654.07,653.73,1.401]
[1750162129552,1.14257827,654.06,653.73,1.401]
[1750162131056,1.14257827,654.07,653.73,1.401]
[1750162131256,1.14257827,654.06,653.73,1.401]
[1750162132354,1.52387125,654.18,653.73,1.401]
[1750162132355,1.14257827,654.05,653.73,1.401]
[1750162133355,1.14257827,654.06,653.73,1.401]
[1750162133657,1.14257827,654.05,653.73,1.401]
[1750162134561,1.14257827,654.05,653.73,2.976]
[1750162135460,1.14257827,654.04,653.73,2.976]
[1750162135961,1.14257827,654.05,653.73,2.976]
[1750162136962,1.52387125,654.18,653.73,2.976]
[1750162136963,1.14257827,654.04,653.73,2.976]
[1750162138464,1.14257827,654.03,653.73,2.976]
[1750162138660,1.14257827,654.02,653.73,2.976]
[1750162139664,1.14257827,654.01,653.73,2.976]
[1750162142162,1.14257827,653.98,653.73,2.976]
[1750162142365,1.14257827,653.96,653.73,2.976]
[1750162143468,1.14257827,653.95,653.73,2.976]
[1750162146266,1.14257827,653.94,653.73,2.976]
[1750162147170,1.14257827,653.95,653.73,2.976]
[1750162147371,1.14257827,653.94,653.73,2.976]
[1750162149070,1.14257827,653.86,653.73,2.976]
[1750162149471,1.14257827,653.88,653.73,2.976]
[1750162149772,1.14257827,653.9,653.73,2.976]
[1750162149969,1.14257827,653.89,653.73,2.976]
[1750162150572,1.14257827,653.89,653.73,1.401]
[1750162151475,1.14257827,653.91,653.73,1.401]
[1750162153374,1.14257827,653.9,653.73,1.401]
[1750162153574,1.14257827,653.91,653.73,1.401]
[1750162154674,1.14257827,653.98,653.73,1.401]
[1750162154976,1.14168292,653.98,653.73,1.401]
[1750162155380,1.14168292,654.01,653.73,1.401]
[1750162155579,1.14168292,654.02,653.73,1.401]
[1750162155777,1.14168292,654.0,653.73,1.401]
[1750162155978,1.14168292,654.02,653.73,1.401]
[1750162156979,1.14168292,654.03,653.73,1.401]
[1750162157377,1.14168292,654.02,653.73,1.401]
[1750162158279,0.26597981,654.65,653.73,1.401]
[1750162158280,1.14168292,654.0,653.73,1.401]
[1750162159181,1.14168292,654.01,653.68,1.248]
[1750162160384,1.14168292,654.0,653.68,1.248]
[1750162161482,1.14168292,653.99,653.68,1.248]
[1750162162589,1.14168292,654.05,653.68,1.248]
[1750162163287,1.14168292,654.04,653.69,1.3]
[1750162164385,1.14168292,654.04,653.7,1.095]
[1750162165493,1.14168292,654.03,653.7,1.095]
[1750162166190,1.14168292,654.03,653.71,1.137]
[1750162166394,1.14168292,654.02,653.71,1.137]
[1750162169194,1.14168292,654.01,653.71,1.137]
[1750162172496,1.14168292,653.96,653.71,1.137]
[1750162179403,1.14168292,653.97,653.71,1.137]
[1750162179602,1.14168292,653.94,653.71,1.137]
[1750162179799,1.14168292,653.96,653.71,1.137]
[1750162180297,1.14168292,653.95,653.71,1.137]
[1750162183204,1.14168292,653.95,653.7,1.095]
[1750162184203,1.14168292,653.96,653.7,1.095]
[1750162185807,1.14168292,653.96,653.71,1.383]
[1750162186009,1.14475049,653.97,653.71,1.383]
[1750162187404,2.28580688,654.29,653.71,1.383]
[1750162187405,1.14475049,653.96,653.71,1.383]
[1750162188909,1.14475049,653.97,653.71,1.383]
[1750162189113,1.14475049,653.96,653.71,1.383]
[1750162189611,1.14475049,653.98,653.71,1.383]
[1750162190110,1.14475049,653.97,653.71,1.383]
[1750162190417,1.14475049,653.98,653.71,1.383]
[1750162191411,1.52387125,654.13,653.71,1.383]
[1750162191412,1.14475049,653.99,653.71,1.383]
[1750162193612,1.14475049,654.0,653.71,1.383]
[1750162194015,1.14475049,654.0,653.72,1.656]
[1750162195111,1.14475049,654.0,653.73,1.627]
[1750162199321,1.14475049,654.02,653.73,1.627]
[1750162199517,1.14475049,654.03,653.73,1.627]
[1750162199721,1.14475049,654.04,653.73,1.627]
[1750162200117,1.14475049,654.03,653.73,1.627]
[1750162202621,1.14475049,654.02,653.73,1.627]
[1750162203022,1.14475049,654.03,653.73,1.627]
[1750162203221,1.14475049,654.02,653.73,1.627]
[1750162203718,1.14475049,654.04,653.73,1.627]
[1750162204519,1.14475049,654.03,653.73,1.627]
[1750162204720,1.52387125,654.17,653.73,1.627]
[1750162204721,1.14475049,654.04,653.73,1.627]
[1750162206723,1.14475049,654.07,653.73,1.627]
[1750162207525,1.14475049,654.08,653.73,1.627]
[1750162209121,1.14475049,654.08,653.74,1.395]
[1750162209525,1.14475049,654.07,653.74,1.395]
[1750162209725,1.14475049,654.08,653.74,1.395]
[1750162210425,1.14475049,654.07,653.74,1.395]
[1750162210826,1.14475049,654.08,653.74,1.395]
[1750162211123,1.14475049,654.09,653.74,1.395]
[1750162211321,1.14475049,654.1,653.74,1.395]
[1750162211523,1.14475049,654.09,653.74,1.395]
[1750162212222,1.14475049,654.1,653.74,1.395]
[1750162212526,1.14475049,654.09,653.74,1.395]
[1750162214521,1.14475049,654.08,653.74,1.395]
[1750162215624,1.14475049,654.1,653.74,1.395]
[1750162216822,1.14475049,654.11,653.74,1.395]
[1750162220322,1.14475049,654.12,653.74,1.395]
[1750162220526,1.14475049,654.12,653.75,1.138]
[1750162220726,1.14475049,654.13,653.75,1.138]
[1750162221723,1.14475049,654.13,653.76,1.295]
[1750162223932,1.14475049,654.13,653.77,1.117]
[1750162226330,1.14475049,654.12,653.77,1.117]
[1750162227328,1.14475049,654.13,653.77,1.117]
[1750162230129,1.14475049,654.12,653.77,1.117]
[1750162231233,1.14475049,654.12,653.78,1.448]
[1750162235030,1.14475049,654.16,653.78,1.448]
[1750162235231,1.14475049,654.18,653.78,1.448]
[1750162235935,1.14475049,654.19,653.78,1.448]
[1750162239338,1.14475049,654.2,653.78,1.448]
[1750162239539,1.14475049,654.19,653.78,1.448]
[1750162239742,1.14475049,654.2,653.79,1.472]
[1750162240140,1.14475049,654.19,653.79,1.472]
[1750162241041,1.14475049,654.19,653.8,1.174]
[1750162243639,1.14475049,654.17,653.8,1.174]
[1750162244339,1.14475049,654.18,653.8,1.174]
[1750162245241,1.14475049,654.17,653.8,1.174]
[1750162245646,1.14475049,654.19,653.8,1.174]
[1750162246045,1.14475049,654.2,653.8,1.174]
[1750162246345,1.14475049,654.21,653.8,1.174]
[1750162247346,1.14475049,654.2,653.8,1.174]
[1750162247541,1.14475049,654.19,653.8,1.174]
[1750162248345,1.14475049,654.2,653.8,1.174]
[1750162248543,1.14475049,654.19,653.8,1.174]
[1750162248848,1.14475049,654.2,653.8,1.174]
[1750162249442,1.14475049,654.19,653.8,1.174]
[1750162249746,1.14475049,654.2,653.8,1.174]
[1750162249947,1.14475049,654.19,653.8,1.174]
[1750162250348,1.14475049,654.2,653.8,1.174]
[1750162250547,1.14475049,654.19,653.8,1.174]
[1750162250746,1.14475049,654.22,653.8,1.174]
[1750162254351,1.14475049,654.22,653.81,1.666]
[1750162255752,1.14475049,654.21,653.81,1.666]
[1750162256850,1.14475049,654.21,653.82,1.352]
[1750162257455,1.14475049,654.2,653.82,1.352]
[1750162258155,1.14475049,654.21,653.82,1.352]
[1750162260754,1.14475049,654.2,653.82,1.352]
[1750162261359,0.26597981,654.65,653.82,1.352]
[1750162261360,1.14475049,654.19,653.82,1.352]
[1750162262461,1.14475049,654.18,653.82,1.352]
[1750162262960,1.14475049,654.19,653.82,1.352]
[1750162263561,1.14475049,654.18,653.82,1.352]
[1750162263762,1.14475049,654.19,653.82,1.352]
[1750162265663,1.14475049,654.18,653.82,1.352]
[1750162266561,0.26597981,654.65,653.82,1.352]
[1750162266562,1.14475049,654.28,653.82,1.352]
[1750162266761,1.14475049,654.29,653.82,1.352]
[1750162267466,1.14475049,654.3,653.82,1.352]
[1750162267966,1.14475049,654.29,653.82,1.352]
[1750162268168,1.14475049,654.31,653.82,1.352]
[1750162268766,1.14475049,654.32,653.82,1.352]
[1750162268968,1.14475049,654.31,653.82,1.352]
[1750162269169,1.14475049,654.32,653.82,1.352]
[1750162270564,1.14475049,654.3,653.82,1.352]
[1750162270770,1.14475049,654.31,653.82,1.352]
[1750162271066,1.14475049,654.31,653.83,1.332]
[1750162271268,1.14475049,654.3,653.83,1.332]
[1750162272773,1.14475049,654.31,653.83,1.332]
[1750162273471,1.14475049,654.29,653.84,1.686]
[1750162273872,1.14475049,654.17,653.84,1.686]
[1750162274871,1.14475049,654.16,653.84,1.686]
[1750162275375,1.14475049,654.17,653.84,1.686]
[1750162276771,1.14475049,654.16,653.84,1.686]
[1750162277075,1.14475049,654.16,653.85,1.08]
[1750162277374,1.14475049,654.17,653.85,1.08]
[1750162277674,1.14475049,654.16,653.85,1.08]
[1750162278371,1.14475049,654.17,653.85,1.08]
[1750162278577,1.14475049,654.16,653.85,1.08]
[1750162281480,1.52387125,654.31,653.85,1.08]
[1750162281481,1.14475049,654.17,653.85,1.08]
[1750162281781,1.14475049,654.16,653.85,1.08]
[1750162286185,1.14475049,654.16,653.86,1.191]
[1750162287386,1.14475049,654.15,653.86,1.191]
[1750162287585,1.14475049,654.15,653.87,1.631]
[1750162290490,1.14475049,654.15,653.88,1.305]
[1750162291091,1.14475049,654.14,653.88,1.305]
[1750162291992,1.14475049,654.13,653.88,1.305]
[1750162292793,1.14475049,654.12,653.88,1.305]
[1750162293889,1.14475049,654.11,653.88,1.305]
[1750162294690,1.14475049,654.12,653.88,1.305]
[1750162297694,1.14475049,654.11,653.88,1.305]
[1750162298389,1.14475049,654.12,653.88,1.305]
[1750162299188,1.14475049,654.11,653.88,1.305]
[1750162299590,1.14475049,654.12,653.88,1.305]
[1750162299991,1.14475049,654.11,653.88,1.305]
[1750162301291,1.14475049,654.09,653.88,1.305]
[1750162303290,0.26604284,654.37,653.88,1.305]
[1750162303291,1.14475049,654.08,653.88,1.305]
[1750162305491,1.14475049,654.03,653.88,1.305]
[1750162305692,1.14475049,654.04,653.88,1.305]
[1750162307697,1.14475049,654.05,653.88,1.305]
[1750162308595,1.14475049,654.06,653.88,1.305]
[1750162309098,1.14475049,654.07,653.88,1.305]
[1750162309494,1.14475049,654.08,653.88,1.305]
[1750162309799,1.14475049,654.08,653.87,1.631]
[1750162310396,1.14475049,654.07,653.87,1.631]
[1750162310600,1.14475049,654.06,653.87,1.631]
[1750162310902,1.14475049,654.04,653.87,1.631]
[1750162311902,1.14475049,654.03,653.87,1.631]
[1750162312602,1.14475049,654.04,653.87,1.631]
[1750162312799,1.14475049,654.03,653.87,1.631]
[1750162313805,1.14475049,654.05,653.87,1.631]
[1750162314808,1.14475049,654.06,653.87,1.631]
[1750162315207,1.14475049,654.07,653.87,1.631]
[1750162315408,1.14475049,654.05,653.87,1.631]
[1750162317511,1.14475049,654.06,653.87,1.631]
[1750162320010,1.14475049,654.07,653.87,1.631]
[1750162321716,1.52387125,654.23,653.87,1.631]
[1750162321717,1.14475049,654.08,653.87,1.631]
[1750162323614,1.14475049,654.07,653.87,1.631]
[1750162324117,1.14475049,654.09,653.87,1.631]
[1750162324514,1.14475049,654.07,653.87,1.631]
[1750162324714,1.14475049,654.09,653.87,1.631]
[1750162325515,1.14475049,654.1,653.87,1.631]
[1750162328517,0.26604284,654.37,653.87,1.631]
[1750162328518,1.14475049,654.09,653.87,1.631]
[1750162329516,1.14475049,654.1,653.87,1.631]
[1750162329721,1.14475049,654.09,653.87,1.631]
[1750162330421,1.14360334,654.09,653.87,1.631]
[1750162332724,1.14360334,654.08,653.87,1.631]
[1750162335524,1.14360334,654.1,653.87,1.631]
[1750162335923,1.14360334,654.12,653.87,1.631]
[1750162336925,1.14360334,654.14,653.87,1.631]
[1750162337324,1.14360334,654.13,653.87,1.631]
[1750162337626,1.14360334,654.14,653.87,1.631]
[1750162338231,1.14360334,654.17,653.87,1.631]
[1750162338527,0.26604284,654.37,653.87,1.631]
[1750162338528,1.14360334,654.19,653.87,1.631]
[1750162339530,1.14360334,654.18,653.87,1.631]
[1750162342433,1.14360334,654.2,653.87,1.631]
[1750162342633,1.14360334,654.2,653.83,1.375]
[1750162344231,1.14377261,654.2,653.83,1.375]
[1750162344734,1.14377261,654.2,653.84,1.43]
[1750162345333,1.14377261,654.2,653.85,1.242]
[1750162347436,1.14377261,654.21,653.85,1.242]
[1750162349836,1.14377261,654.3,653.85,1.242]
[1750162351741,1.14377261,654.29,653.85,1.242]
[1750162352537,1.14377261,654.3,653.85,1.242]
[1750162355140,1.14377261,654.33,653.85,1.242]
[1750162355440,1.14377261,654.34,653.85,1.242]
[1750162358647,1.14377261,654.28,653.85,1.242]
[1750162359250,1.14377261,654.28,653.86,1.278]
[1750162359651,1.14377261,654.29,653.86,1.278]
[1750162359851,1.14377261,654.28,653.86,1.278]
[1750162360350,1.14377261,654.29,653.86,1.278]
[1750162360948,0.26604284,654.37,653.86,1.278]
[1750162361148,1.14377261,654.45,653.86,1.278]
[1750162361853,1.14377261,654.47,653.86,1.278]
[1750162362455,1.14377261,654.48,653.86,1.278]
[1750162365451,0.26598896,654.5,653.86,1.278]
[1750162365452,1.14377261,654.49,653.86,1.278]
[1750162367854,0.26598896,654.5,653.86,1.278]
[1750162367855,1.14377261,654.32,653.86,1.278]
[1750162369151,1.14377261,654.32,653.87,1.22]
[1750162369855,0.26598896,654.5,653.87,1.22]
[1750162372251,0.26598896,654.5,653.88,1.447]
[1750162374655,0.26598896,654.5,653.89,1.162]
[1750162374856,1.14232447,654.27,653.89,1.162]
[1750162375158,1.14232447,654.23,653.89,1.162]
[1750162375859,0.26598896,654.5,653.89,1.162]
[1750162375860,1.14232447,654.22,653.89,1.162]
[1750162376954,1.14232447,654.21,653.89,1.162]
[1750162377161,1.14232447,654.19,653.89,1.162]
[1750162377959,1.14232447,654.2,653.89,1.162]
[1750162378257,1.14232447,654.19,653.89,1.162]
[1750162379558,1.14232447,654.15,653.89,1.162]
[1750162379764,1.14232447,654.13,653.89,1.162]
[1750162380459,1.14232447,654.12,653.89,1.162]
[1750162381463,1.52309929,654.25,653.89,1.162]
[1750162381464,1.14232447,654.13,653.89,1.162]
[1750162382564,1.14232447,654.12,653.89,1.162]
[1750162383064,1.14232447,654.13,653.89,1.162]
[1750162383263,1.14232447,654.12,653.89,1.162]
[1750162383866,1.14232447,654.11,653.89,1.162]
[1750162387363,1.14232447,654.1,653.89,1.162]
[1750162387669,1.14232447,654.1,653.88,1.447]
[1750162388469,1.14232447,654.11,653.88,1.447]
[1750162389366,1.14232447,654.1,653.88,1.447]
[1750162391067,1.14232447,654.1,653.89,1.343]
[1750162391270,1.14232447,654.09,653.89,1.343]
[1750162391565,1.14232447,654.09,653.9,1.068]
[1750162392066,1.52309929,654.21,653.9,1.068]
[1750162392067,1.14232447,654.08,653.9,1.068]
[1750162392472,1.14232447,654.07,653.9,1.068]
[1750162392673,1.14232447,654.06,653.9,1.068]
[1750162392969,1.14232447,654.04,653.9,1.068]
[1750162393173,1.14232447,654.03,653.9,1.068]
[1750162393668,1.14232447,654.01,653.9,1.068]
[1750162394368,1.14232447,654.02,653.9,1.068]
[1750162395273,1.14232447,654.01,653.9,1.068]
[1750162395474,1.14232447,654.02,653.9,1.068]
[1750162397572,1.14232447,654.03,653.9,1.068]
[1750162399477,1.14232447,654.04,653.9,1.068]
[1750162399880,1.14232447,654.03,653.9,1.068]
[1750162401578,1.14232447,654.04,653.9,1.068]
[1750162402879,1.14232447,654.05,653.9,1.068]
[1750162403378,1.14232447,654.04,653.9,1.068]
[1750162403582,1.14232447,654.05,653.9,1.068]
[1750162405183,1.14232447,654.06,653.9,1.068]
[1750162405681,1.14232447,654.05,653.9,1.068]
[1750162406281,1.14232447,654.06,653.9,1.068]
[1750162407985,1.14232447,654.07,653.9,1.068]
[1750162409287,1.14232447,654.26,653.9,1.068]
[1750162409989,1.14232447,654.27,653.9,1.068]
[1750162414391,1.14232447,654.23,653.9,1.068]
[1750162414991,1.14232447,654.24,653.9,1.068]
[1750162416093,1.14232447,654.22,653.9,1.068]
[1750162416293,1.14232447,654.24,653.9,1.068]
[1750162416490,1.14232447,654.21,653.9,1.068]
[1750162416689,1.14232447,654.16,653.9,1.068]
[1750162416993,1.14232447,654.15,653.9,1.068]
[1750162418491,1.14232447,654.14,653.9,1.068]
[1750162418692,1.14232447,654.14,653.89,2.571]
[1750162418994,1.14232447,654.13,653.89,2.571]
[1750162419190,1.14232447,654.14,653.89,2.571]
[1750162421394,1.14232447,654.13,653.9,1.216]
[1750162421890,1.14232447,654.14,653.9,1.216]
[1750162422094,1.14232447,654.15,653.9,1.216]
[1750162423393,1.14232447,654.14,653.9,1.216]
[1750162425197,1.14232447,654.13,653.9,1.216]
[1750162426195,1.14232447,654.13,653.91,1.086]
[1750162427101,1.14232447,654.12,653.92,1.676]
[1750162428297,1.14232447,654.11,653.92,1.676]
[1750162429297,1.14232447,654.1,653.92,1.676]
[1750162430301,1.14232447,654.09,653.92,1.676]
[1750162431404,1.14232447,654.09,653.93,1.47]
[1750162432004,1.14232447,654.07,653.93,1.47]
[1750162432605,1.14232447,654.06,653.93,1.47]
[1750162433806,1.14232447,654.05,653.93,1.47]
[1750162435302,1.14232447,654.06,653.93,1.47]
[1750162435502,1.14232447,654.05,653.93,1.47]
[1750162438908,1.14232447,654.06,653.93,1.47]
[1750162439208,1.14232447,654.05,653.93,1.47]
[1750162439409,1.14499512,654.05,653.93,1.47]
[1750162440505,1.14499512,654.06,653.93,1.47]
[1750162442607,1.14499512,654.05,653.93,1.47]
[1750162443510,1.14499512,654.06,653.93,1.47]
[1750162443711,1.14499512,654.05,653.93,1.47]
[1750162447409,1.14499512,654.04,653.93,1.47]
[1750162448012,1.14499512,654.05,653.93,1.47]
[1750162448508,0.26598896,654.5,653.93,1.47]
[1750162448509,1.14499512,654.04,653.93,1.47]
[1750162450012,1.14499512,654.03,653.93,1.47]
[1750162451710,1.14499512,654.03,653.92,1.676]
[1750162453210,1.14499512,654.03,653.93,1.229]
[1750162453911,1.14499512,654.02,653.93,1.229]
[1750162457516,1.14499512,654.0,653.93,1.229]
[1750162457913,1.14499512,653.98,653.93,1.229]
[1750162458612,1.14499512,653.97,653.93,1.229]
[1750162462922,1.14499512,653.98,653.93,1.229]
[1750162463121,1.14499512,653.97,653.93,1.229]
[1750162465222,1.14499512,653.99,653.93,1.229]
[1750162465426,1.14499512,654.0,653.93,1.229]
[1750162467829,1.14499512,653.99,653.93,1.229]
[1750162472233,1.14499512,654.0,653.93,1.229]
[1750162472433,1.14499512,654.02,653.93,1.229]
[1750162474431,1.14499512,654.01,653.93,1.229]
[1750162474734,1.14499512,654.02,653.93,1.229]
[1750162475132,1.14499512,654.01,653.93,1.229]
[1750162477535,1.14499512,654.03,653.93,1.229]
[1750162479632,1.14499512,654.02,653.93,1.229]
[1750162482434,1.14499512,654.01,653.93,1.229]
[1750162484237,1.14499512,654.01,653.9,1.081]
[1750162485936,1.14499512,653.99,653.91,1.303]
[1750162487437,1.14499512,653.97,653.91,1.303]
[1750162487834,1.14499512,653.98,653.91,1.303]
[1750162489540,1.14499512,653.96,653.91,1.303]
[1750162489835,1.14499512,653.97,653.91,1.303]
[1750162490033,1.14499512,653.96,653.91,1.303]
[1750162490637,1.14499512,653.95,653.91,1.303]
[1750162491237,1.14499512,653.96,653.91,1.303]
[1750162492839,1.14499512,653.97,653.91,1.303]
[1750162494337,2.28464894,654.23,653.91,1.303]
[1750162494338,1.14499512,653.99,653.91,1.303]
[1750162497240,1.14499512,653.97,653.91,1.303]
[1750162498141,1.14499512,653.96,653.91,1.303]
[1750162498436,1.14499512,653.97,653.91,1.303]
[1750162498941,1.14499512,653.94,653.91,1.303]
[1750162501440,1.14552354,653.94,653.91,1.303]
[1750162502946,1.14552354,653.92,653.91,1.303]
[1750162504345,1.52309929,654.03,653.91,1.303]
[1750162504748,1.52309929,654.06,653.91,1.303]
[1750162505745,1.52309929,654.02,653.91,1.303]
[1750162505949,1.52309929,654.01,653.91,1.303]
[1750162506646,1.52309929,654.0,653.91,1.303]
[1750162506849,1.52309929,654.01,653.91,1.303]
[1750162507146,1.52309929,654.0,653.91,1.303]
[1750162507449,1.52309929,654.01,653.91,1.303]
[1750162507847,1.52309929,653.99,653.91,1.303]
[1750162508249,1.52309929,653.98,653.91,1.303]
[1750162508451,1.52309929,653.99,653.91,1.303]
[1750162508652,0.26610794,654.1,653.91,1.303]
[1750162508653,1.52309929,654.0,653.91,1.303]
[1750162508853,1.52309929,653.94,653.91,1.303]
[1750162509453,0.26610794,654.1,653.91,1.303]
[1750162509454,1.52309929,653.95,653.91,1.303]
[1750162509653,1.52309929,653.96,653.91,1.303]
[1750162509952,1.52309929,653.95,653.91,1.303]
[1750162510349,1.52309929,653.97,653.91,1.303]
[1750162510548,1.52309929,653.96,653.91,1.303]
[1750162511654,1.52309929,653.95,653.91,1.303]
[1750162511851,1.52309929,653.94,653.91,1.303]
[1750162514851,1.52309929,653.94,653.79,1.15]
[1750162515153,1.14286308,653.81,653.79,1.15]
[1750162515558,1.14286308,653.82,653.79,1.15]
[1750162517457,1.14286308,653.82,653.75,1.447]
[1750162517660,1.14286308,653.83,653.75,1.447]
[1750162522558,1.14286308,653.84,653.75,1.447]
[1750162522861,1.14286308,653.81,653.75,1.447]
[1750162524265,1.14286308,653.82,653.75,1.447]
[1750162524461,1.14286308,653.82,653.73,3.311]
[1750162526366,1.14286308,653.89,653.73,3.311]
[1750162526563,1.14286308,653.9,653.73,3.311]
[1750162526861,1.14286308,653.89,653.73,3.311]
[1750162527667,1.14286308,653.9,653.73,3.311]